bitfinex-derivatives/quotes_BNBF0:USTF0_20241231
["timestamp","ask_amount","ask_price","bid_price","bid_amount"]
[1735656844031,1.46787443,711.82,710.9,1.05169104]
[1735656845524,1.46787443,711.82,710.56,0.28146813]
[1735656845525,1.46787443,711.82,710.8,1.05169104]
[1735656846529,1.46787443,711.82,710.56,0.28146813]
[1735656846530,1.46787443,711.82,710.85,1.05169104]
[1735656846728,0.25860661,711.81,710.85,1.05169104]
[1735656847734,0.25860661,711.81,710.82,1.05169104]
[1735656848633,0.25860661,711.81,710.8,1.05169104]
[1735656849026,0.25863446,711.8,710.8,1.05169104]
[1735656849230,0.25863446,711.79,710.8,1.05169104]
[1735656849433,0.25863446,711.78,710.8,1.05169104]
[1735656849628,0.25863446,711.77,710.72,1.05169104]
[1735656849833,0.25863446,711.76,710.72,1.05169104]
[1735656850033,0.25863446,711.75,710.72,1.05169104]
[1735656850334,0.25863446,711.74,710.72,1.05169104]
[1735656850534,0.25863446,711.73,710.72,1.05169104]
[1735656850835,0.25863446,711.72,710.73,1.05169104]
[1735656851135,0.25863446,711.71,710.73,1.05169104]
[1735656851333,1.46807052,711.74,710.73,1.05169104]
[1735656851334,0.25863446,711.7,710.73,1.05169104]
[1735656851534,0.25862822,711.69,710.7,1.05169104]
[1735656851734,0.25862822,711.68,710.7,1.05169104]
[1735656851935,1.46807052,711.74,710.7,1.05169104]
[1735656852131,0.2586302,711.73,710.7,1.05169104]
[1735656852730,0.2586302,711.73,710.69,1.05169104]
[1735656854235,0.2586302,711.73,710.56,0.28146813]
[1735656854236,0.25866186,711.72,710.7,1.05169104]
[1735656854434,1.46807052,711.74,710.7,1.05169104]
[1735656854435,0.25866186,711.71,710.7,1.05169104]
[1735656854629,0.25866186,711.7,710.7,1.05169104]
[1735656854842,0.25866186,711.69,710.7,1.05169104]
[1735656855141,0.25866186,711.68,710.57,1.05169104]
[1735656855334,0.25866186,711.67,710.57,1.05169104]
[1735656855533,0.25866186,711.66,710.57,1.05169104]
[1735656855740,0.25866186,711.65,710.57,1.05169104]
[1735656855941,1.46807052,711.74,710.56,0.28146813]
[1735656855942,0.25866186,711.64,710.56,0.28146813]
[1735656856142,0.25866186,711.63,710.56,0.28146813]
[1735656856439,0.25866186,711.62,710.56,0.28146813]
[1735656856642,1.46807052,711.74,710.56,0.28146813]
[1735656856843,0.25868126,711.73,710.56,0.28146813]
[1735656859346,0.2587203,711.72,710.56,0.28146813]
[1735656859546,0.2587203,711.71,710.56,0.28146813]
[1735656859746,0.2587203,711.73,710.56,0.28146813]
[1735656859943,0.25872217,711.72,710.56,0.28146813]
[1735656860143,0.25872217,711.71,710.56,0.28146813]
[1735656860342,0.25872217,711.7,710.56,0.28146813]
[1735656860646,0.25872217,711.69,710.56,0.28146813]
[1735656860844,0.25872217,711.68,710.56,0.28146813]
[1735656861039,0.25872217,711.67,710.56,0.28146813]
[1735656861343,0.25872217,711.66,710.56,0.28146813]
[1735656861548,0.25872217,711.65,710.56,0.28146813]
[1735656861746,0.2808752,712.06,710.56,0.28146813]
[1735656861747,0.25872217,711.64,710.56,0.28146813]
[1735656862049,0.25870093,711.63,710.56,0.28146813]
[1735656862244,0.25870093,711.62,710.56,0.28146813]
[1735656862543,0.25870093,711.61,710.56,0.28146813]
[1735656862746,0.25870093,711.6,710.56,0.28146813]
[1735656862951,0.25870093,711.59,710.56,0.28146813]
[1735656863138,0.25870093,711.58,710.56,0.28146813]
[1735656863450,0.25870093,711.57,710.56,0.28146813]
[1735656863746,0.25870093,711.56,710.56,0.28146813]
[1735656863941,0.25870093,711.55,710.56,0.28146813]
[1735656864140,0.25870093,711.54,710.56,0.28146813]
[1735656864339,0.25870093,711.53,710.56,0.28146813]
[1735656864641,0.2586981,711.52,710.56,0.28146813]
[1735656864845,0.2586981,711.51,710.56,0.28146813]
[1735656865042,1.46857647,711.66,710.56,0.28146813]
[1735656865243,0.25869268,711.65,710.56,0.28146813]
[1735656865444,1.46857647,711.66,710.56,0.28146813]
[1735656873653,1.46857647,711.66,710.56,1.33315917]
[1735656874955,1.46857647,711.66,710.69,1.05169104]
[1735656876056,1.46857647,711.66,710.79,1.05169104]
[1735656877457,1.46857647,711.66,710.75,1.05169104]
[1735656878558,1.46857647,711.66,710.62,1.05169104]
[1735656879762,1.46857647,711.66,710.65,1.05169104]
[1735656880762,1.46857647,711.66,710.63,1.05169104]
[1735656881764,1.46857647,711.66,710.64,0.28143645]
[1735656882164,1.46857647,711.66,710.65,1.05169104]
[1735656882359,1.46857647,711.66,710.66,0.28142853]
[1735656884369,1.46857647,711.66,710.66,1.33311957]
[1735656885465,1.46857647,711.66,710.69,1.05169104]
[1735656886868,1.46857647,711.66,710.75,1.05169104]
[1735656887764,1.46857647,711.66,710.7,1.05169104]
[1735656888869,1.46857647,711.66,710.66,0.28142853]
[1735656889971,0.2808752,712.06,710.66,1.33311957]
[1735656890268,1.46793635,711.8,710.66,1.33311957]
[1735656890464,0.2808752,712.06,710.66,1.33311957]
[1735656890671,1.46784347,711.8,710.66,1.33311957]
[1735656890869,0.2808752,712.06,710.66,1.33311957]
[1735656891171,0.2808752,712.06,710.71,1.05169104]
[1735656891966,0.2808752,712.06,710.66,0.28142853]
[1735656892171,1.46747209,712.05,710.66,0.28142853]
[1735656898576,1.46747209,712.05,710.84,1.05169104]
[1735656899774,1.46747209,712.05,710.66,0.28142853]
[1735656899775,1.46747209,712.05,710.9,1.05169104]
[1735656900684,1.46747209,712.05,710.92,1.05169104]
[1735656900880,1.46747209,712.05,710.66,0.28142853]
[1735656902282,1.46747209,712.05,710.98,1.04830908]
[1735656904483,1.46747209,712.05,710.94,1.04830908]
[1735656905684,1.46747209,712.05,711.02,1.04830908]
[1735656906983,1.46747209,712.05,711.04,1.04830908]
[1735656908075,1.46747209,712.05,711.05,1.04830908]
[1735656909093,1.46747209,712.05,711.0,1.04830908]
[1735656910380,1.46747209,712.05,710.89,1.04830908]
[1735656911587,1.46747209,712.05,710.94,1.04830908]
[1735656912387,1.46747209,712.05,710.95,0.28131373]
[1735656914888,1.46747209,712.05,710.95,1.32962281]
[1735656915686,1.46747209,712.05,710.98,1.04830908]
[1735656916885,1.46747209,712.05,711.03,1.04830908]
[1735656917491,0.25847278,712.04,711.03,1.04830908]
[1735656918091,0.25847278,712.04,711.02,1.04830908]
[1735656918306,1.46747209,712.05,711.02,1.04830908]
[1735656918690,0.25847092,712.04,711.02,1.04830908]
[1735656918887,1.46747209,712.05,711.02,1.04830908]
[1735656919291,0.25846933,712.04,711.02,1.04830908]
[1735656919594,1.46747209,712.05,711.02,1.04830908]
[1735656919797,1.46747209,712.05,711.09,1.04830908]
[1735656921099,1.46747209,712.05,711.04,1.04830908]
[1735656922297,1.46747209,712.05,711.05,1.04830908]
[1735656922996,1.25254445,713.01,710.95,0.28131373]
[1735656922997,1.04378704,712.56,711.06,1.04830908]
[1735656923195,1.46718337,712.12,711.06,1.04830908]
[1735656923395,1.04378704,712.56,711.06,1.04830908]
[1735656923595,1.46704935,712.25,711.06,1.04830908]
[1735656923996,1.04378704,712.56,711.06,1.04830908]
[1735656924198,0.25839017,712.55,711.21,1.04830908]
[1735656924497,0.25839017,712.54,711.21,1.04830908]
[1735656924698,0.25839017,712.53,711.21,1.04830908]
[1735656924899,0.25838404,712.52,711.21,1.04830908]
[1735656925102,0.25838404,712.51,711.21,1.04830908]
[1735656925600,0.25838404,712.51,711.34,1.04830908]
[1735656926299,1.46667322,712.52,711.34,1.04830908]
[1735656926497,0.25839232,712.51,711.32,1.04830908]
[1735656927600,0.25839232,712.51,711.15,1.04830908]
[1735656928900,1.46667322,712.52,711.15,1.04830908]
[1735656928901,0.25842498,712.5,711.15,1.04830908]
[1735656929100,0.25842498,712.49,711.15,1.04830908]
[1735656929399,1.46667322,712.52,711.15,1.04830908]
[1735656929400,0.25842498,712.48,711.15,1.04830908]
[1735656929601,1.46667322,712.52,711.15,1.04830908]
[1735656929801,0.25842271,712.51,711.15,1.04830908]
[1735656930200,1.46667322,712.52,711.15,1.04830908]
[1735656930400,0.25843098,712.51,711.15,1.04830908]
[1735656931404,0.25843098,712.51,710.95,0.28131373]
[1735656931405,1.04378704,712.48,711.24,1.04830908]
[1735656931601,0.25844989,712.47,711.24,1.04830908]
[1735656932403,1.04378704,712.46,711.17,1.04830908]
[1735656932597,0.25844989,712.45,711.17,1.04830908]
[1735656933398,1.30223693,712.45,711.17,1.04830908]
[1735656933601,0.25844989,712.44,711.17,1.04830908]
[1735656934701,0.25844989,712.44,711.19,1.04830908]
[1735656935506,1.46695659,712.43,711.19,1.04830908]
[1735656935810,1.46695659,712.43,710.95,1.32962281]
[1735656935811,1.30223693,712.42,711.16,1.04830908]
[1735656935998,0.25844989,712.41,711.16,1.04830908]
[1735656936705,1.04378704,712.42,711.17,1.04830908]
[1735656937005,0.25844875,712.41,711.17,1.04830908]
[1735656937707,1.04378704,712.4,711.23,1.04830908]
[1735656937899,0.25844875,712.39,711.23,1.04830908]
[1735656939309,0.25844875,712.38,711.23,1.04830908]
[1735656939608,0.25842081,712.37,711.23,1.04830908]
[1735656939805,0.25842081,712.42,711.23,1.04830908]
[1735656940006,0.25842081,712.41,711.25,1.04830908]
[1735656940205,0.25842081,712.4,711.25,1.04830908]
[1735656940505,0.25842081,712.39,711.25,1.04830908]
[1735656940709,0.25842081,712.38,711.25,1.04830908]
[1735656940906,0.25842081,712.37,711.25,1.04830908]
[1735656941107,0.25842081,712.36,711.22,1.04830908]
[1735656941407,0.25842081,712.35,711.22,1.04830908]
[1735656941600,0.25842081,712.34,711.22,1.04830908]
[1735656941805,0.25842081,712.33,711.22,1.04830908]
[1735656942003,0.25847587,712.32,711.22,1.04830908]
[1735656942205,0.25847587,712.31,711.11,1.04830908]
[1735656942402,0.25847587,712.3,711.11,1.04830908]
[1735656942605,0.25847587,712.29,711.11,1.04830908]
[1735656942809,1.04378704,712.34,711.11,1.04830908]
[1735656943005,0.25847033,712.33,711.11,1.04830908]
[1735656943408,0.25847033,712.33,710.95,0.28131373]
[1735656943409,0.25847033,712.33,711.13,1.04830908]
[1735656943610,0.25847033,712.32,711.13,1.04830908]
[1735656943805,0.25847033,712.31,711.13,1.04830908]
[1735656944010,0.25847033,712.3,711.04,1.04830908]
[1735656944212,0.25847245,712.29,711.04,1.04830908]
[1735656944412,1.46695659,712.43,711.04,1.04830908]
[1735656944607,0.25847038,712.42,711.04,1.04830908]
[1735656946613,0.25847038,712.42,711.06,1.04830908]
[1735656947218,1.46695659,712.43,711.06,1.04830908]
[1735656947415,0.25846459,712.42,711.06,1.04830908]
[1735656948823,0.25846459,712.42,710.98,1.04830908]
[1735656949924,0.25846467,712.41,710.98,1.04830908]
[1735656950122,0.25846467,712.4,710.98,1.04830908]
[1735656950322,0.25846467,712.39,710.98,1.04830908]
[1735656950523,0.25846182,712.38,710.98,1.04830908]
[1735656950825,1.46695659,712.43,711.01,1.04830908]
[1735656951020,0.25846275,712.42,711.01,1.04830908]
[1735656952716,0.25847452,712.41,711.01,1.04830908]
[1735656952916,0.25847452,712.4,711.01,1.04830908]
[1735656953120,0.25847452,712.39,711.01,1.04830908]
[1735656953320,0.25847452,712.39,710.95,0.28131373]
[1735656953321,0.25847452,712.38,711.04,1.04830908]
[1735656953515,0.25847452,712.37,711.04,1.04830908]
[1735656953720,0.25847452,712.36,711.04,1.04830908]
[1735656953919,0.25847452,712.35,711.04,1.04830908]
[1735656954122,0.65712875,712.84,711.06,1.04830908]
[1735656954123,0.25847452,712.34,711.06,1.04830908]
[1735656954320,0.25847452,712.33,711.06,1.04830908]
[1735656955321,0.25846619,712.32,711.06,1.04830908]
[1735656955624,0.25846619,712.31,711.06,1.04830908]
[1735656955824,0.25846619,712.3,711.06,1.04830908]
[1735656956021,0.25846619,712.29,711.06,1.04830908]
[1735656956226,0.25846619,712.28,711.06,1.04830908]
[1735656956422,1.46712667,712.34,711.06,1.04830908]
[1735656957623,1.46712667,712.34,710.95,0.28131373]
[1735656961324,1.04378704,712.56,710.95,0.28131373]
[1735656961526,0.53914646,712.55,710.95,0.28131373]
[1735656961728,0.25846441,712.54,710.95,0.28131373]
[1735656961926,1.04378704,712.53,711.08,1.04830908]
[1735656962126,0.53915828,712.52,711.08,1.04830908]
[1735656962331,0.53916222,712.51,711.08,1.04830908]
[1735656962530,0.25846441,712.5,711.08,1.04830908]
[1735656962727,0.28070569,712.49,711.08,1.04830908]
[1735656962928,0.25846441,712.48,711.08,1.04830908]
[1735656963323,0.25846441,712.48,711.06,1.04830908]
[1735656963324,1.04378704,712.46,711.06,1.04830908]
[1735656963528,0.25846441,712.45,711.06,1.04830908]
[1735656964529,1.04378704,712.43,711.15,1.04830908]
[1735656964729,0.25846441,712.42,711.15,1.04830908]
[1735656964935,0.25846876,712.41,711.15,1.04830908]
[1735656965127,0.25846876,712.4,711.15,1.04830908]
[1735656965323,0.25846876,712.39,711.15,1.04830908]
[1735656965634,1.04378704,712.28,711.21,1.04830908]
[1735656965932,0.25846876,712.27,711.21,1.04830908]
[1735656966724,1.04378704,712.23,711.31,1.04830908]
[1735656966929,0.25846876,712.22,711.31,1.04830908]
[1735656967930,0.25846876,712.22,710.96,0.72587703]
[1735656967931,1.04378704,712.18,711.27,1.04830908]
[1735656969026,1.04378704,712.32,711.02,1.04830908]
[1735656969230,0.25849808,712.31,711.02,1.04830908]
[1735656970233,0.25849404,712.3,711.02,1.04830908]
[1735656970534,0.25849404,712.29,711.02,1.04830908]
[1735656970727,1.04378704,712.34,711.02,1.04830908]
[1735656970728,0.25849404,712.28,711.02,1.04830908]
[1735656970935,1.04378704,712.34,711.02,1.04830908]
[1735656971130,0.25851352,712.33,711.02,1.04830908]
[1735656971330,0.25851352,712.32,711.02,1.04830908]
[1735656971528,0.25851352,712.31,711.02,1.04830908]
[1735656971732,0.25851352,712.3,711.02,1.04830908]
[1735656971931,1.04378704,712.35,711.02,1.04830908]
[1735656972234,0.2585003,712.34,711.02,1.04830908]
[1735656972635,0.2585003,712.34,710.95,0.28131373]
[1735656972828,0.2585003,712.33,710.95,0.28131373]
[1735656973030,0.2585003,712.32,710.95,0.28131373]
[1735656973233,0.2585003,712.31,710.95,0.28131373]
[1735656973433,0.2585003,712.3,710.95,0.28131373]
[1735656973632,0.2585003,712.29,710.95,0.28131373]
[1735656973830,0.2585003,712.28,710.95,0.28131373]
[1735656974036,0.2585003,712.27,710.95,0.28131373]
[1735656974232,0.2585003,712.26,710.95,0.28131373]
[1735656974431,0.2585003,712.25,710.95,0.28131373]
[1735656974630,1.04378704,712.38,710.95,0.28131373]
[1735656974831,0.25851777,712.37,710.95,0.28131373]
[1735656975132,1.04378704,712.33,710.95,0.28131373]
[1735656975329,0.25851742,712.32,710.95,0.28131373]
[1735656975932,1.04378704,712.34,710.95,0.28131373]
[1735656976236,0.53927909,712.33,710.95,0.28131373]
[1735656976435,0.25851035,712.32,710.95,0.28131373]
[1735656976840,1.04378704,712.27,711.02,1.04830908]
[1735656977029,0.25851035,712.26,711.02,1.04830908]
[1735656978038,0.28076874,712.33,711.05,1.04830908]
[1735656978039,0.25848902,712.25,711.05,1.04830908]
[1735656978232,0.25848902,712.24,711.05,1.04830908]
[1735656978433,0.25848902,712.23,711.05,1.04830908]
[1735656978636,0.25848902,712.22,711.05,1.04830908]
[1735656978934,0.25848902,712.21,711.05,1.04830908]
[1735656979131,0.25848902,712.2,711.19,1.04830908]
[1735656979434,0.25848902,712.19,711.19,1.04830908]
[1735656979635,1.04378704,712.23,711.19,1.04830908]
[1735656979945,0.25845411,712.22,711.19,1.04830908]
[1735656980435,1.04378704,712.23,711.19,1.04830908]
[1735656980639,0.25845122,712.22,711.2,1.04830908]
[1735656980837,0.25845122,712.21,711.2,1.04830908]
[1735656981038,0.25845122,712.2,711.2,1.04830908]
[1735656981241,1.04378704,712.24,711.2,1.04830908]
[1735656981642,0.28076874,712.33,711.26,1.04830908]
[1735656981936,0.2584442,712.32,711.26,1.04830908]
[1735656982943,0.2584442,712.32,711.29,1.04830908]
[1735656983144,0.25842263,712.31,711.29,1.04830908]
[1735656983342,0.25842263,712.3,711.29,1.04830908]
[1735656983546,0.25842263,712.29,711.29,1.04830908]
[1735656983740,0.28076874,712.33,711.29,1.04830908]
[1735656983939,0.25842288,712.32,711.3,1.04830908]
[1735656985045,0.25842288,712.32,711.34,1.04830908]
[1735656985946,0.28076874,712.33,711.33,1.04830908]
[1735656985947,0.258439,712.31,711.33,1.04830908]
[1735656986250,0.258439,712.3,711.33,1.04830908]
[1735656986451,0.258439,712.29,711.33,1.04830908]
[1735656986644,0.258439,712.28,711.33,1.04830908]
[1735656986845,0.258439,712.27,711.33,1.04830908]
[1735656987040,0.258439,712.26,711.33,1.04830908]
[1735656987247,0.258439,712.25,711.33,1.04830908]
[1735656987442,0.258439,712.24,711.31,1.04830908]
[1735656987646,0.258439,712.23,711.31,1.04830908]
[1735656987844,0.258439,712.22,711.31,1.04830908]
[1735656988052,0.28076874,712.33,711.31,1.04830908]
[1735656988848,0.28076874,712.33,711.21,1.04830908]
[1735656989950,0.28076874,712.33,711.2,1.04830908]
[1735656990751,0.28076874,712.33,711.26,1.04830908]
[1735656991249,0.25840819,712.32,711.26,1.04830908]
[1735656991453,0.28076874,712.33,711.26,1.04830908]
[1735656992653,0.28076874,712.33,711.25,1.04830908]
[1735656993960,0.28076874,712.33,711.24,1.04830908]
[1735656995154,1.04378704,712.79,711.24,1.04830908]
[1735656995354,0.25837552,712.78,711.24,1.04830908]
[1735656995551,0.28059542,712.77,711.24,1.04830908]
[1735656995755,0.25837552,712.76,711.24,1.04830908]
[1735656996157,0.25837556,712.75,711.29,1.04830908]
[1735656997160,0.28060723,712.74,711.27,1.04830908]
[1735656997358,0.25837556,712.73,711.27,1.04830908]
[1735656998058,0.25837556,712.72,711.27,1.04830908]
[1735656998259,0.25837556,712.71,711.28,1.04830908]
[1735656998558,0.25837556,712.7,711.28,1.04830908]
[1735656998761,0.25837351,712.69,711.28,1.04830908]
[1735656998954,0.25837351,712.73,711.28,1.04830908]
[1735656999159,0.25837351,712.72,711.28,1.04830908]
[1735656999360,0.25837351,712.71,711.3,1.04830908]
[1735656999659,0.25837459,712.7,711.3,1.04830908]
[1735656999853,0.25837459,712.69,711.3,1.04830908]
[1735657000055,0.25837459,712.68,711.3,1.04830908]
[1735657000256,0.25837459,712.67,711.3,1.04830908]
[1735657000464,0.25837459,712.66,711.26,1.04830908]
[1735657000655,0.25837459,712.65,711.26,1.04830908]
[1735657000959,0.25837459,712.64,711.26,1.04830908]
[1735657001158,0.25837459,712.63,711.26,1.04830908]
[1735657001353,0.25837459,712.62,711.26,1.04830908]
[1735657001559,0.25837796,712.61,711.24,1.04830908]
[1735657001859,0.28060723,712.74,711.24,1.04830908]
[1735657002063,0.2584123,712.73,711.24,1.04830908]
[1735657002763,0.2584123,712.73,710.95,0.28131373]
[1735657006460,0.2806151,712.72,710.95,0.28131373]
[1735657006862,0.25842548,712.71,710.95,0.28131373]
[1735657007062,0.2806151,712.72,710.95,0.28131373]
[1735657007758,1.46693083,712.71,710.95,0.28131373]
[1735657008463,0.2584198,712.7,710.95,0.28131373]
[1735657009457,0.25842527,712.69,710.95,0.28131373]
[1735657009657,0.25842527,712.68,710.95,0.28131373]
[1735657009859,0.25842527,712.67,710.95,0.28131373]
[1735657010060,1.46693083,712.71,710.95,1.32962281]
[1735657010061,0.25842527,712.66,710.95,1.32962281]
[1735657010363,0.25842527,712.65,710.95,1.32962281]
[1735657010556,0.25842527,712.64,710.95,1.32962281]
[1735657010761,0.25842527,712.63,710.95,1.32962281]
[1735657010962,0.25842527,712.62,710.95,1.32962281]
[1735657011158,0.25842527,712.61,710.95,1.32962281]
[1735657011363,0.25842527,712.6,710.95,1.32962281]
[1735657011558,0.25842527,712.59,710.95,1.32962281]
[1735657011763,1.46693083,712.71,710.99,1.04830908]
[1735657011764,0.25842527,712.58,710.99,1.04830908]
[1735657012064,0.25844476,712.57,710.99,1.04830908]
[1735657012263,0.25844476,712.56,710.99,1.04830908]
[1735657012463,0.25844476,712.55,710.99,1.04830908]
[1735657012663,1.04378704,712.64,710.99,1.04830908]
[1735657012664,0.25844476,712.54,710.99,1.04830908]
[1735657012867,0.25844476,712.53,710.99,1.04830908]
[1735657013061,0.25844476,712.53,710.95,0.28131373]
[1735657013062,1.04378704,712.46,711.23,1.04830908]
[1735657013259,0.25844476,712.45,711.23,1.04830908]
[1735657014463,1.04378704,712.43,711.25,1.04830908]
[1735657014655,0.25842856,712.42,711.25,1.04830908]
[1735657015464,0.25842856,712.42,710.96,0.72457516]
[1735657015465,0.25842856,712.42,711.27,1.04830908]
[1735657016766,1.04378704,712.34,711.3,1.04830908]
[1735657016964,0.25842856,712.33,711.3,1.04830908]
[1735657017162,1.04378704,712.34,711.3,1.04830908]
[1735657017363,0.25844013,712.33,711.3,1.04830908]
[1735657017766,1.46692567,712.32,711.32,1.04830908]
[1735657017961,0.25844013,712.31,711.32,1.04830908]
[1735657019867,0.25844386,712.3,711.32,1.04830908]
[1735657020067,0.25844386,712.29,711.32,1.04830908]
[1735657020267,0.25844386,712.29,710.96,0.72457516]
[1735657020268,0.25844386,712.28,711.29,1.04830908]
[1735657020467,0.25844386,712.27,711.29,1.04830908]
[1735657020668,0.25844386,712.26,711.29,1.04830908]
[1735657020967,0.25844386,712.25,711.29,1.04830908]
[1735657021165,1.46692567,712.32,711.29,1.04830908]
[1735657021166,0.25844386,712.24,711.29,1.04830908]
[1735657021472,0.25844386,712.23,711.29,1.04830908]
[1735657021664,0.25844386,712.22,711.29,1.04830908]
[1735657021970,0.25844386,712.21,711.29,1.04830908]
[1735657022171,0.25844386,712.2,711.33,1.04830908]
[1735657022368,0.25844386,712.19,711.33,1.04830908]
[1735657022568,0.25844386,712.18,711.33,1.04830908]
[1735657022766,0.25844386,712.17,711.33,1.04830908]
[1735657022967,0.25844386,712.16,711.33,1.04830908]
[1735657023174,0.25844386,712.15,711.33,1.04830908]
[1735657023373,1.46692567,712.32,711.31,1.04830908]
[1735657023567,0.25843565,712.31,711.31,1.04830908]
[1735657024374,0.2584323,712.3,711.31,1.04830908]
[1735657024576,0.2584323,712.29,711.3,1.04830908]
[1735657024875,0.2584323,712.28,711.3,1.04830908]
[1735657025069,0.2584323,712.27,711.3,1.04830908]
[1735657025275,0.2584323,712.26,711.3,1.04830908]
[1735657025476,0.2584323,712.25,711.29,1.04830908]
[1735657025779,0.2584323,712.24,711.29,1.04830908]
[1735657025980,0.2584323,712.23,711.29,1.04830908]
[1735657026173,0.2584323,712.22,711.29,1.04830908]
[1735657026378,0.2584323,712.21,711.29,1.04830908]
[1735657026578,0.2584323,712.2,711.29,1.04830908]
[1735657026780,0.2584323,712.19,711.32,1.04830908]
[1735657027080,1.46692567,712.32,711.32,1.04830908]
[1735657027282,0.25840881,712.31,711.32,1.04830908]
[1735657027981,0.25840881,712.31,710.96,0.72457516]
[1735657027982,0.25840881,712.31,711.33,1.04830908]
[1735657029179,0.25840881,712.31,711.35,1.04830908]
[1735657029685,1.46692567,712.32,711.35,1.04830908]
[1735657030477,1.46692567,712.32,711.39,1.04830908]
[1735657031482,1.46692567,712.32,710.96,0.72457516]
[1735657031483,1.46692567,712.32,711.42,1.04830908]
[1735657032485,1.46692567,712.32,711.48,1.04830908]
[1735657033285,1.46692567,712.32,711.3,1.04830908]
[1735657035392,1.46692567,712.32,711.29,1.04830908]
[1735657036894,1.46692567,712.32,711.28,1.04830908]
[1735657038296,1.46692567,712.32,711.31,1.04830908]
[1735657039388,1.46692567,712.32,711.45,1.04830908]
[1735657040195,1.46692567,712.32,711.37,1.04830908]
[1735657041396,1.46692567,712.32,711.45,1.04830908]
[1735657042794,1.46692567,712.32,711.44,1.04830908]
[1735657043494,0.2806151,712.72,711.44,1.04830908]
[1735657043693,0.25830746,712.71,711.55,1.04830908]
[1735657043895,1.46653415,712.44,711.55,1.04830908]
[1735657044095,0.2806151,712.72,711.55,1.04830908]
[1735657044295,1.46625095,712.7,711.55,1.04830908]
[1735657044495,0.25830703,712.69,711.55,1.04830908]
[1735657045390,0.25830368,712.68,711.55,1.04830908]
[1735657045691,0.25830368,712.67,711.55,1.04830908]
[1735657045892,0.25830368,712.66,711.55,1.04830908]
[1735657046098,0.25831395,712.65,711.53,1.04830908]
[1735657046299,0.25831395,712.64,711.53,1.04830908]
[1735657046490,0.25831395,712.63,711.53,1.04830908]
[1735657046696,0.25831395,712.62,711.53,1.04830908]
[1735657046893,0.25831395,712.61,711.53,1.04830908]
[1735657047097,0.25831395,712.6,711.48,1.04830908]
[1735657047294,0.25831395,712.59,711.48,1.04830908]
[1735657047599,0.25831395,712.58,711.48,1.04830908]
[1735657047795,0.25831395,712.57,711.48,1.04830908]
[1735657047999,0.25831395,712.56,711.48,1.04830908]
[1735657048302,0.25831151,712.55,711.48,1.04830908]
[1735657048496,0.25831151,712.54,711.48,1.04830908]
[1735657048696,0.25831151,712.53,711.48,1.04830908]
[1735657048902,0.25831151,712.52,711.48,1.04830908]
[1735657049200,1.46625095,712.7,711.48,1.04830908]
[1735657049500,0.25830569,712.69,711.48,1.04830908]
[1735657050096,0.25830569,712.69,711.49,1.04830908]
[1735657050699,1.46625095,712.7,711.49,1.04830908]
[1735657050900,0.25830399,712.69,711.49,1.04830908]
[1735657051102,0.25830399,712.69,711.5,1.04830908]
[1735657051996,1.46625095,712.7,711.5,1.04830908]
[1735657052196,1.46625095,712.7,711.22,1.04830908]
[1735657052197,0.25826964,712.69,711.52,1.04830908]
[1735657053004,1.46625095,712.7,711.52,1.04830908]
[1735657053402,0.25826379,712.69,711.53,1.04830908]
[1735657053798,1.46625095,712.7,711.53,1.04830908]
[1735657054200,0.25826794,712.69,711.53,1.04830908]
[1735657054404,1.46625095,712.7,711.53,1.04830908]
[1735657054705,0.25826253,712.69,711.5,1.04830908]
[1735657055607,0.25826253,712.69,711.52,1.04830908]
[1735657056504,0.25826253,712.69,711.51,1.04830908]
[1735657057406,0.25826253,712.69,711.49,1.04830908]
[1735657058610,1.46625095,712.7,711.49,1.04830908]
[1735657058611,0.25827101,712.68,711.49,1.04830908]
[1735657058912,0.25827101,712.67,711.51,1.04830908]
[1735657059209,0.25827101,712.66,711.51,1.04830908]
[1735657059507,0.25827101,712.65,711.51,1.04830908]
[1735657059703,1.46625095,712.7,711.51,1.04830908]
[1735657060207,0.25829761,712.69,711.51,1.04830908]
[1735657060411,1.46625095,712.7,711.4,1.04830908]
[1735657060711,0.2582951,712.69,711.4,1.04830908]
[1735657061209,0.25830623,712.68,711.4,1.04830908]
[1735657061409,0.25830623,712.67,711.38,1.04830908]
[1735657061609,0.25830623,712.66,711.38,1.04830908]
[1735657061804,0.25830623,712.65,711.38,1.04830908]
[1735657062007,0.25830623,712.64,711.38,1.04830908]
[1735657062211,0.25830623,712.63,711.38,1.04830908]
[1735657062407,0.25830623,712.62,711.38,1.04830908]
[1735657062612,0.25830623,712.61,711.35,1.04830908]
[1735657062913,0.25830623,712.6,711.35,1.04830908]
[1735657063611,0.25830623,712.6,711.43,1.04830908]
[1735657063811,0.25833819,712.59,711.43,1.04830908]
[1735657064008,0.25833819,712.58,711.43,1.04830908]
[1735657064207,0.25833819,712.57,711.43,1.04830908]
[1735657064409,0.25833819,712.56,711.43,1.04830908]
[1735657064707,0.25833819,712.55,711.44,1.04830908]
[1735657064916,0.25833819,712.54,711.44,1.04830908]
[1735657065211,0.25833819,712.53,711.44,1.04830908]
[1735657065410,0.25833819,712.52,711.44,1.04830908]
[1735657065611,0.25833819,712.51,711.44,1.04830908]
[1735657065811,0.25833819,712.51,710.88,2.14029772]
[1735657065812,0.25833819,712.5,711.45,1.04830908]
[1735657066013,0.25833819,712.49,711.45,1.04830908]
[1735657066313,0.25833819,712.48,711.45,1.04830908]